bitfinex-derivatives/quotes_SOLF0:USTF0_20250719
["timestamp","ask_amount","ask_price","bid_price","bid_amount"]
[1752887190886,3.17,174.16,174.15,5.7381]
[1752887192490,0.03621128,174.17,174.16,5.7377]
[1752887192689,0.03621128,174.17,174.16,9.0477]
[1752887192885,0.03621128,174.17,174.14,3.31]
[1752887193082,3.38350234,174.15,174.1,3.31]
[1752887193284,3.17,174.14,174.1,3.31]
[1752887193491,3.17,174.13,174.1,3.31]
[1752887193789,3.17,174.13,174.12,5.7391]
[1752887193991,3.17,174.13,174.12,9.0491]
[1752887194496,0.04006872,174.14,174.13,9.0487]
[1752887195986,3.17,174.18,174.17,5.7374]
[1752887196188,3.17,174.24,174.17,3.38350234]
[1752887196394,3.17,174.24,174.19,3.38350234]
[1752887196689,6.14876673,174.3,174.24,3.31]
[1752887196690,3.17,174.29,174.24,3.31]
[1752887197088,6.14876673,174.34,174.25,3.31]
[1752887197089,3.17,174.28,174.25,3.31]
[1752887197393,252.75621425,174.4,174.25,3.31]
[1752887197394,3.17,174.32,174.26,3.31]
[1752887197588,6.14876673,174.38,174.33,5.7321]
[1752887197589,3.38350234,174.35,174.33,5.7321]
[1752887197896,3.17,174.33,174.31,3.31]
[1752887198084,3.17,174.33,174.32,0.04050166]
[1752887198483,3.17,174.35,174.33,3.31]
[1752887198684,6.55350234,174.39,174.33,3.31]
[1752887198883,6.55350234,174.39,174.32,0.04050166]
[1752887198884,3.38350234,174.39,174.36,5.7309]
[1752887199082,3.17,174.37,174.36,5.7309]
[1752887199294,3.17,174.38,174.31,3.31]
[1752887199593,3.17,174.4,174.37,3.31]
[1752887199997,3.17,174.4,174.39,5.7302]
[1752887200693,3.17,174.41,174.38,5.7305]
[1752887200895,3.38350234,174.42,174.38,5.7305]
[1752887201094,3.17,174.39,174.38,5.7305]
[1752887202391,3.38350234,174.42,174.39,5.7299]
[1752887202600,3.17,174.39,174.3,3.31]
[1752887202794,3.17,174.39,174.23,110.14]
[1752887202795,3.17,174.35,174.27,3.31]
[1752887202994,3.17,174.34,174.33,5.732]
[1752887203300,6.55350234,174.37,174.29,3.31]
[1752887203690,3.17,174.36,174.29,3.31]
[1752887204201,3.21317889,174.34,174.33,5.7319]
[1752887204799,3.21317889,174.34,174.29,3.31]
[1752887204800,3.17,174.31,174.29,3.31]
[1752887205200,3.38350234,174.31,174.25,3.31]
[1752887205394,3.17,174.3,174.27,5.7338]
[1752887205590,3.17,174.29,174.25,3.31]
[1752887205995,3.17,174.29,174.26,3.31]
[1752887206297,3.17,174.29,174.28,5.7338]
[1752887207098,3.17,174.29,174.26,5.7341]
[1752887207294,3.17,174.28,174.25,3.31]
[1752887207496,6.59589863,174.3,174.28,5.7337]
[1752887207904,6.55350234,174.3,174.28,5.7337]
[1752887208806,3.38350234,174.3,174.28,5.7337]
[1752887208995,3.17,174.28,174.26,3.31]
[1752887209304,3.17,174.28,174.22,3.31]
[1752887209610,3.38350234,174.28,174.22,3.31]
[1752887209797,3.17,174.27,174.2,3.31]
[1752887209995,3.20675921,174.27,174.2,3.31]
[1752887210701,0.03675921,174.27,174.21,3.38350234]
[1752887210896,0.03675921,174.27,174.22,3.31]
[1752887211097,0.03675921,174.27,174.25,3.31]
[1752887211295,3.20675921,174.27,174.21,3.38350234]
[1752887211604,3.17,174.25,174.2,3.31]
[1752887211901,3.17,174.22,174.17,3.31]
[1752887212200,3.38350234,174.22,174.16,3.31]
[1752887212405,3.17,174.18,174.16,3.31]
[1752887212608,3.17,174.22,174.15,3.31]
[1752887213203,3.21267197,174.2,174.16,3.31]
[1752887213502,3.21267197,174.2,174.17,3.31]
[1752887214203,3.21267197,174.2,174.19,5.7368]
[1752887214405,0.04267197,174.2,174.19,8.9568]
[1752887215007,0.04267197,174.2,174.19,5.7368]
[1752887215398,3.29267197,174.2,174.19,5.7368]
[1752887215597,0.04267197,174.2,174.19,5.7368]
[1752887215801,0.04267197,174.2,174.19,8.9568]
[1752887216106,3.25,174.25,174.19,8.9568]
[1752887216107,3.25,174.25,174.24,5.7351]
[1752887216509,3.38350234,174.27,174.22,3.22]
[1752887216704,3.25,174.24,174.23,5.7352]
[1752887216904,6.63350234,174.27,174.23,3.22]
[1752887217203,3.25,174.28,174.27,5.7341]
[1752887217397,6.63350234,174.31,174.24,3.22]
[1752887217604,3.38350234,174.29,174.27,5.7341]
[1752887218008,3.38350234,174.31,174.22,3.22]
[1752887218203,3.25,174.3,174.28,5.7335]
[1752887218400,3.38350234,174.31,174.26,0.04298477]
[1752887218699,3.25,174.29,174.26,3.26298477]
[1752887218905,3.25,174.29,174.27,3.22]
[1752887219104,3.25,174.29,174.28,5.7335]
[1752887219304,3.25,174.28,174.26,0.04298477]
[1752887219605,3.25,174.27,174.26,5.77748477]
[1752887219906,3.25,174.27,174.21,3.22]
[1752887220207,3.25,174.26,174.19,3.38350234]
[1752887220511,3.25,174.26,174.2,3.22]
[1752887221210,3.38350234,174.27,174.17,3.38350234]
[1752887221211,3.25,174.19,174.17,5.7372]
[1752887221509,3.25,174.19,174.15,3.22]
[1752887221711,3.25,174.17,174.16,5.7375]
[1752887222006,3.25,174.17,174.09,3.22]
[1752887222207,3.25,174.13,174.09,3.22]
[1752887222512,3.25,174.13,174.12,5.7391]
[1752887222706,6.63350234,174.14,174.12,5.7391]
[1752887223013,0.04194775,174.13,174.12,5.7391]
[1752887223310,3.29194775,174.13,174.01,96.64522635]
[1752887223500,3.29194775,174.13,174.07,3.38350234]
[1752887223705,3.25,174.16,174.1,3.22]
[1752887223901,6.63350234,174.18,174.15,5.7378]
[1752887224105,3.25,174.18,174.16,3.22]
[1752887224308,3.25,174.23,174.07,16.27240805]
[1752887224516,3.25,174.23,174.21,3.22]
[1752887225002,3.25,174.23,174.08,3.38104596]
[1752887225003,3.25,174.23,174.19,5.7364]
[1752887225208,3.25,174.23,174.16,3.38104596]
[1752887225409,3.25,174.23,174.22,5.7358]
[1752887225604,388.94104596,174.28,174.19,3.22]
[1752887225812,3.25,174.27,174.22,3.38104596]
[1752887226011,0.03889758,174.25,174.24,8.9551]
[1752887226508,0.03889758,174.25,174.24,5.7351]
[1752887226711,3.28889758,174.25,174.24,5.7351]
[1752887226902,3.25,174.24,174.23,5.7353]
[1752887227508,0.03889758,174.25,174.24,5.7351]
[1752887227714,3.28889758,174.25,174.24,5.7351]
[1752887228406,0.03889758,174.25,174.24,6.59918724]
[1752887228608,3.25,174.32,174.24,6.59918724]
[1752887228810,3.25,174.32,174.27,3.22]
[1752887229011,3.25,174.32,174.24,3.3782271]
[1752887229310,3.25,174.32,174.25,3.22]
[1752887229510,3.25,174.31,174.27,3.22]
[1752887229708,3.25,174.3,174.27,3.22]
[1752887230108,3.25,174.3,174.28,5.7335]
[1752887230506,9.1111271,174.31,174.27,0.04187068]
[1752887230810,3.25,174.29,174.26,5.7341]
[1752887231109,3.3782271,174.31,174.23,3.22]
[1752887231325,3.25,174.3,174.27,3.26169561]
[1752887231608,3.25,174.3,174.28,8.9537]
[1752887231802,3.25,174.29,174.27,0.04169561]
[1752887232006,3.25,174.28,174.27,0.04169561]
[1752887232811,3.25,174.28,174.22,3.22]
[1752887233011,3.25,174.28,174.19,3.3782271]
[1752887233012,3.3782271,174.26,174.19,3.22]
[1752887233208,3.25,174.25,174.19,3.22]
[1752887233408,3.25,174.25,174.23,8.9553]
[1752887233712,3.25,174.26,174.23,8.9553]
[1752887234213,3.25,174.25,174.23,8.9553]
[1752887234409,0.04324557,174.26,174.25,3.22]
[1752887234909,3.29324557,174.26,174.22,3.22]
[1752887235310,3.29324557,174.26,174.23,3.22]
[1752887235511,3.29324557,174.26,174.24,8.9549]
[1752887236204,3.29324557,174.26,174.25,5.7348]
[1752887236508,0.04324557,174.26,174.25,5.7348]
[1752887236710,3.29324557,174.26,174.19,3.22]
[1752887237112,3.25,174.26,174.19,3.22]
[1752887237412,3.29361316,174.24,174.2,3.22]
[1752887237716,3.25,174.24,174.22,5.7355]
[1752887238224,3.25,174.24,174.1,110.86]
[1752887238225,3.25,174.18,174.14,5.7381]
[1752887238416,3.25,174.16,174.13,3.22]
[1752887238910,0.03839525,174.16,174.11,3.22]
[1752887239117,6.63291261,174.23,174.15,3.22]
[1752887239314,3.38291261,174.25,174.17,3.22]
[1752887239512,6.63291261,174.25,174.23,5.7352]
[1752887239911,110.78,174.27,174.16,3.38291261]
[1752887240112,3.38291261,174.29,174.25,3.22]
[1752887240311,3.38291261,174.29,174.2,3.38291261]
[1752887240512,6.63291261,174.31,174.27,3.22]
[1752887240720,3.25,174.3,174.27,3.22]
[1752887241116,3.25,174.33,174.29,3.22]
[1752887241315,3.37885217,174.33,174.28,3.22]
[1752887241516,3.37885217,174.35,174.28,3.22]
[1752887241721,3.37885217,174.35,174.32,5.7324]
[1752887241917,6.62885217,174.33,174.27,3.22]
[1752887242117,6.62885217,174.31,174.3,0.03862713]
[1752887242420,3.37885217,174.31,174.26,5.7344]
[1752887242722,3.25,174.29,174.22,3.37885217]
[1752887242916,3.37885217,174.31,174.26,3.22]
[1752887243124,3.37885217,174.33,174.25,3.22]
[1752887243320,6.62947199,174.27,174.18,3.22]
[1752887243515,3.25,174.26,174.22,8.9555]
[1752887244022,3.25,174.25,174.22,8.9555]
[1752887244321,0.04422097,174.26,174.23,3.38015333]
[1752887244621,0.04422097,174.26,174.24,3.12]
[1752887245018,0.04422097,174.26,174.25,8.8548]
[1752887247520,3.17,174.25,174.23,8.8552]
[1752887247823,3.17,174.24,174.19,5.7367]
[1752887248025,3.37874724,174.23,174.19,5.7367]
[1752887248226,3.17,174.22,174.17,3.12]
[1752887248420,3.37874724,174.25,174.18,3.37874724]
[1752887248630,0.03793048,174.23,174.2,3.12]
[1752887249024,0.03793048,174.23,174.21,3.12]
[1752887249327,0.03793048,174.23,174.19,6.50030624]
[1752887249523,3.17,174.29,174.22,3.12]
[1752887249727,3.17,174.29,174.24,3.12]
[1752887249926,3.17,174.29,174.25,5.7345]
[1752887250230,3.17,174.29,174.26,3.12]
[1752887250423,3.17,174.29,174.23,3.38030624]
[1752887250424,3.17,174.29,174.27,5.734]
[1752887250621,3.17,174.31,174.17,3.12]
[1752887250827,3.17,174.3,174.27,3.12]
[1752887251628,385.64,174.38,174.3,3.12]
[1752887251629,392.18645193,174.38,174.3,3.12]
[1752887251926,3.17,174.42,174.34,3.12]
[1752887252128,6.54645193,174.45,174.36,3.12]
[1752887252327,3.75337508,174.44,174.36,3.16108437]
[1752887252523,12.27485193,174.45,174.39,8.8501]
[1752887252827,3.17,174.43,174.39,8.8501]
[1752887253024,3.17,174.41,174.35,5.8739686]
[1752887253224,3.20656534,174.44,174.36,3.12]
[1752887253420,3.20656534,174.44,174.28,110.42]
[1752887253421,0.03656534,174.44,174.41,3.12]
[1752887253629,3.17,174.47,174.4,3.12]
[1752887254229,3.17,174.47,174.42,0.04318642]
[1752887254428,3.17,174.46,174.42,0.04318642]
[1752887254826,3.17,174.45,174.42,3.16318642]
[1752887255134,3.17,174.45,174.42,5.77238642]
[1752887255321,3.17,174.47,174.44,3.12]
[1752887255634,3.17,174.49,174.45,3.12]
[1752887255834,5.8739686,174.5,174.45,3.12]
[1752887256027,3.17,174.48,174.45,3.12]
[1752887256233,5.8739686,174.5,174.41,5.8739686]
[1752887256430,3.17,174.5,174.47,3.12]
[1752887257125,3.17,174.51,174.45,0.04045134]
[1752887257632,3.17,174.49,174.46,3.12]
[1752887257824,3.17,174.48,174.45,0.04045134]
[1752887258029,3.17,174.48,174.45,3.16045134]
[1752887258435,3.17,174.48,174.46,3.12]
[1752887258632,3.17,174.49,174.46,3.12]
[1752887259235,3.17,174.49,174.45,5.76865134]
[1752887259236,3.17,174.48,174.45,0.04045134]
[1752887259433,3.17,174.46,174.45,0.04045134]
[1752887259826,3.17,174.46,174.43,3.12]
[1752887260231,3.17,174.46,174.44,0.03789376]
[1752887260537,3.17,174.49,174.46,3.12]
[1752887260737,5.8739686,174.49,174.44,0.03789376]
[1752887261037,3.17,174.49,174.41,5.8739686]
[1752887261238,3.17,174.49,174.45,0.04262546]
[1752887261434,5.8739686,174.5,174.46,3.12]
[1752887261739,9.0439686,174.52,174.46,3.12]
[1752887261938,14.7701686,174.52,174.46,8.8478]
[1752887262130,9.0439686,174.52,174.46,8.8478]
[1752887262331,9.0439686,174.52,174.46,3.12]
[1752887262635,3.17,174.5,174.47,3.1573971]
[1752887262840,3.17,174.5,174.47,0.0373971]
[1752887263036,3.17,174.51,174.47,0.0373971]
[1752887263236,5.8739686,174.52,174.47,0.0373971]
[1752887263537,3.17,174.5,174.48,3.12]
[1752887263742,3.17,174.5,174.47,0.0373971]
[1752887263932,3.17,174.49,174.47,0.0373971]
[1752887264133,3.17,174.48,174.47,0.0373971]
[1752887264337,3.17,174.47,174.42,3.12]
[1752887264537,5.8739686,174.48,174.42,3.12]
[1752887264741,3.17,174.45,174.4,5.7298]
[1752887264941,5.8739686,174.48,174.41,3.12]
[1752887265141,3.17,174.47,174.41,3.12]
[1752887265338,8.8978,174.47,174.41,8.8494]
[1752887265542,3.17,174.45,174.38,3.12]
[1752887265941,5.8739686,174.42,174.35,3.12]
[1752887266144,3.17,174.41,174.35,3.12]
[1752887266544,3.17,174.39,174.36,3.12]
[1752887267839,3.17,174.36,174.33,3.12]
[1752887268043,3.17,174.35,174.33,3.12]
[1752887268440,3.17,174.36,174.32,5.7324]
[1752887268644,3.17,174.35,174.32,3.12]
[1752887268838,3.17,174.35,174.29,3.12]
[1752887269444,8.9016,174.35,174.3,5.7331]
[1752887269646,8.9016,174.35,174.29,3.12]
[1752887269846,3.17,174.35,174.29,3.12]
[1752887270249,3.17,174.35,174.3,5.7331]
[1752887270551,3.17,174.35,174.25,8.9939686]
[1752887270851,5.7324,174.33,174.28,5.7336]
[1752887271151,3.17,174.31,174.26,3.12]
[1752887271346,3.17,174.31,174.27,3.12]
[1752887271545,3.17,174.31,174.28,3.12]
[1752887272149,3.17,174.31,174.25,5.8739686]
[1752887272344,0.04375937,174.32,174.29,3.12]
[1752887272553,0.04375937,174.32,174.31,3.12]
[1752887273152,0.04375937,174.32,174.31,8.8528]
[1752887274055,3.21375937,174.32,174.31,5.7328]
[1752887274257,3.14,174.31,174.28,3.12]
[1752887274552,3.14,174.31,174.29,3.19]
[1752887274752,3.14,174.31,174.29,8.9234]
[1752887275850,0.04375937,174.32,174.27,3.37694734]
[1752887276054,0.04375937,174.32,174.3,3.19]
[1752887276459,0.04375937,174.32,174.31,8.9228]
[1752887276657,0.04375937,174.32,174.31,12.29974734]
[1752887277559,0.04375937,174.32,174.31,8.9228]
[1752887279557,3.18375937,174.32,174.31,5.7328]
[1752887280459,3.18375937,174.32,174.24,388.95694734]
[1752887280460,3.14,174.3,174.26,3.37694734]
[1752887280663,3.14,174.3,174.27,3.19]
[1752887280960,3.14,174.3,174.28,5.7335]
[1752887281155,0.04375937,174.32,174.28,3.19]
[1752887281361,0.04375937,174.32,174.3,3.37694734]
[1752887281661,3.14,174.4,174.31,3.19]
[1752887281960,3.14,174.4,174.33,3.19]
[1752887282651,3.14,174.4,174.34,3.37694734]
[1752887282855,3.37694734,174.43,174.4,5.7297]
[1752887283057,3.14,174.43,174.4,3.19]
[1752887283356,3.14,174.45,174.43,3.19]
[1752887283561,3.14,174.47,174.44,3.19]
[1752887283751,3.14,174.5,174.44,3.37694734]
[1752887283953,3.37694734,174.51,174.46,3.19]
[1752887284152,3.14,174.5,174.44,3.37694734]
[1752887284362,0.99763492,174.57,174.45,3.22951823]
[1752887284553,3.14,174.53,174.46,3.37694734]
[1752887284758,3.14,174.57,174.51,3.19]
[1752887285357,3.14,174.57,174.49,3.19]
[1752887285562,3.14,174.57,174.5,3.37694734]
[1752887285761,3.14,174.57,174.51,3.22708567]
[1752887286962,3.37694734,174.59,174.54,5.725]
[1752887287161,3.14,174.62,174.55,3.19]
[1752887287358,6.51694734,174.62,174.55,3.19]
[1752887287661,3.14,174.59,174.57,0.04132089]
[1752887288257,106.29938197,174.63,174.56,3.37694734]
[1752887288464,106.29938197,174.63,174.57,3.19]
[1752887289460,3.14,174.62,174.59,8.9135]
[1752887289759,3.14,174.62,174.56,3.41410459]
[1752887289962,3.14,174.62,174.56,0.03715725]
[1752887290160,5.7229,174.62,174.57,5.7243]
[1752887290354,3.14,174.6,174.57,5.7243]
[1752887290559,3.14,174.59,174.57,5.7243]
[1752887290859,3.14,174.59,174.56,0.03715725]
[1752887290860,3.14,174.62,174.58,5.7239]
[1752887291058,3.14,174.61,174.58,5.7239]
[1752887291252,3.14,174.6,174.57,3.19]
[1752887291458,3.14,174.6,174.57,8.9142]
[1752887291764,3.14,174.6,174.57,3.19]
[1752887292463,106.29938197,174.63,174.58,3.37694734]
[1752887292659,106.29938197,174.63,174.6,3.19]
[1752887292964,3.14,174.62,174.6,3.19]
[1752887293367,3.14,174.65,174.6,8.95229215]
[1752887293569,3.14,174.63,174.6,8.95229215]
[1752887293866,3.14,174.68,174.61,3.37694734]
[1752887294062,3.14,174.68,174.65,3.19]
[1752887294262,3.14,174.65,174.59,3.19]
[1752887294463,3.37694734,174.65,174.59,3.19]
[1752887294657,3.14,174.63,174.6,5.723]
[1752887294857,3.37694734,174.72,174.6,0.04103318]
[1752887295059,0.99653504,174.75,174.6,0.04103318]
[1752887295060,3.14,174.67,174.61,3.19]
[1752887295262,5.7213,174.67,174.61,3.19]
[1752887295461,3.37694734,174.69,174.61,3.37694734]
[1752887295662,3.14,174.67,174.63,8.9122]
[1752887295862,3.14,174.65,174.62,0.03671158]
[1752887296061,3.14,174.67,174.64,3.19]
[1752887296259,3.14,174.71,174.67,8.9109]
[1752887296462,3.14,174.7,174.67,8.9109]
[1752887296863,3.14,174.7,174.68,5.7206]
[1752887297465,3.37694734,174.72,174.68,5.7206]
[1752887297760,6.51694734,174.76,174.68,3.19]
[1752887297963,3.37694734,174.74,174.68,3.19]
[1752887298163,3.14,174.71,174.65,3.19]
[1752887298563,3.14,174.73,174.7,3.19]
[1752887299167,0.99623549,174.79,174.67,3.19]
[1752887299168,3.14,174.75,174.67,3.19]
[1752887299468,3.37694734,174.76,174.7,3.22676111]
[1752887299663,3.14,174.73,174.7,3.22676111]
[1752887299968,3.14,174.73,174.7,8.9099]
[1752887300170,3.37694734,174.76,174.68,3.37694734]
[1752887300468,3.37694734,174.76,174.64,3.37694734]
[1752887300469,3.14,174.75,174.7,3.23376272]
[1752887300669,385.02,174.8,174.7,0.04376272]
[1752887300859,3.14,174.73,174.67,3.19]
[1752887301063,3.37694734,174.74,174.67,3.19]
[1752887301064,3.37694734,174.74,174.69,5.7203]
[1752887301266,388.39694734,174.8,174.69,5.7203]
[1752887301267,6.51694734,174.76,174.69,3.37694734]
[1752887301460,6.51694734,174.76,174.7,3.23218818]
[1752887301769,3.37694734,174.76,174.72,3.19]
[1752887301969,3.14,174.74,174.71,5.7196]
[1752887302167,3.14,174.74,174.71,8.9096]
[1752887302370,3.14,174.74,174.72,3.19]
[1752887302563,3.14,174.74,174.71,5.7196]
[1752887302768,3.14,174.74,174.71,8.9096]
[1752887303065,3.14,174.74,174.7,0.04218818]
[1752887303270,3.14,174.74,174.71,3.19]
[1752887303766,3.14,174.74,174.72,3.19]
[1752887304168,3.14,174.74,174.72,8.9094]
[1752887304569,3.37,174.76,174.73,3.24]
[1752887304862,3.37,174.76,174.7,0.04218818]
[1752887304863,3.37694734,174.79,174.71,3.37694734]
[1752887305062,3.37,174.78,174.72,3.24]
[1752887305274,3.37694734,174.77,174.73,0.03717074]
[1752887305463,385.02,174.8,174.73,0.03717074]
[1752887305464,3.37,174.76,174.73,0.03717074]
[1752887305668,3.37,174.76,174.73,3.24]
[1752887305971,3.37,174.79,174.73,0.04394256]
[1752887306169,3.37,174.79,174.74,3.24]
[1752887306374,3.37,174.78,174.76,5.718]
[1752887306568,3.37,174.77,174.73,0.04394256]
[1752887306766,3.37,174.77,174.74,3.24]
[1752887306972,3.37,174.79,174.76,3.24]
[1752887307172,3.37,174.79,174.77,3.24]
[1752887307575,3.37,174.79,174.77,8.9574]
[1752887307775,3.37,174.78,174.76,0.04389997]
[1752887307970,3.37694734,174.8,174.76,0.04389997]
[1752887308275,3.37,174.79,174.76,0.04389997]
[1752887308465,9.0873,174.79,174.76,0.04389997]
[1752887308665,3.37694734,174.8,174.76,0.04389997]
[1752887308869,3.37694734,174.8,174.76,5.76189997]
[1752887309076,3.37,174.79,174.77,3.24]
[1752887309871,112.85,174.81,174.78,3.24]
[1752887310075,3.37,174.81,174.78,3.24]
[1752887310476,3.37,174.8,174.78,8.9571]
[1752887310678,3.37694734,174.8,174.76,0.04389997]
[1752887310871,109.4,174.86,174.76,0.04389997]
[1752887310872,3.37694734,174.78,174.76,0.04389997]
[1752887311076,3.37,174.77,174.76,0.04389997]
[1752887311965,3.37,174.77,174.76,5.76189997]
[1752887312167,3.37,174.79,174.77,3.24]
[1752887312372,3.37,174.82,174.78,3.24]
[1752887312568,3.37,174.81,174.78,8.9572]
[1752887312875,3.37,174.8,174.78,3.24]
[1752887313079,3.37,174.79,174.78,0.03997983]
[1752887314969,3.37,174.82,174.79,3.24]
[1752887315167,3.37,174.81,174.79,3.24]
[1752887315576,3.37,174.81,174.78,8.99707983]
[1752887316271,3.37,174.81,174.79,8.957]
[1752887316480,3.37,174.8,174.78,0.03997983]
[1752887316678,3.37,174.8,174.78,3.27997983]
[1752887317677,3.37,174.8,174.78,8.99717983]
[1752887319174,3.37,174.8,174.79,5.7171]
[1752887319375,3.37,174.82,174.8,3.24]
[1752887319777,3.37,174.81,174.78,3.27997983]
[1752887319975,3.37,174.81,174.79,3.24]
[1752887320486,3.37,174.81,174.79,8.9568]
[1752887320684,3.37,174.82,174.79,8.9568]
[1752887320980,112.77694734,174.86,174.8,5.7165]
[1752887321181,3.37,174.83,174.81,3.24]
[1752887321577,3.37,174.85,174.77,3.24]
[1752887321782,3.37,174.83,174.77,3.24]
[1752887321979,3.37,174.83,174.8,3.28062126]
[1752887322184,3.37,174.82,174.81,5.7162]
[1752887322680,5.7152,174.85,174.81,5.7162]
[1752887322881,17.22,174.94,174.82,3.24]
[1752887323182,3.37,174.89,174.83,3.24]
[1752887323382,3.37,174.88,174.85,3.24]
[1752887323888,3.37694734,174.89,174.85,5.715]
[1752887324083,3.37,174.91,174.85,3.24]
[1752887324285,3.37,174.88,174.85,3.24]
[1752887324577,3.37,174.87,174.86,0.03806467]
[1752887326286,9.0845,174.87,174.86,0.03806467]
[1752887326584,3.37,174.87,174.79,3.24]
[1752887326886,3.37,174.83,174.77,3.24]
[1752887327082,3.37694734,174.8,174.74,3.24]
[1752887327386,3.37,174.78,174.75,8.9582]
[1752887327583,3.37,174.77,174.75,8.9582]
[1752887327989,3.37,174.77,174.76,5.718]
[1752887328286,9.09374734,174.8,174.76,3.24]
[1752887328287,3.37,174.79,174.76,3.24]
[1752887328487,0.03625337,174.78,174.76,8.9578]
[1752887328890,3.40625337,174.78,174.76,8.9578]
[1752887329082,3.40625337,174.78,174.77,5.7177]
[1752887329485,3.40625337,174.78,174.76,3.24]
[1752887329692,3.40625337,174.78,174.72,3.37694734]
[1752887329693,3.37,174.77,174.73,3.24]
[1752887329888,3.41320071,174.78,174.73,3.24]
[1752887330085,3.37,174.75,174.73,3.24]
[1752887330389,3.37,174.75,174.74,5.7185]
[1752887330590,3.40689766,174.77,174.74,3.24]
[1752887330780,3.40689766,174.77,174.75,3.24]
[1752887331087,0.03689766,174.77,174.75,3.24]
[1752887331282,0.03689766,174.77,174.76,3.24]
[1752887331482,0.03689766,174.77,174.76,8.9581]
[1752887331882,3.37,174.84,174.77,3.24]
[1752887332184,3.37,174.82,174.79,8.9569]
[1752887332392,3.37,174.82,174.8,3.24]
[1752887332591,3.37,174.82,174.8,8.9565]
[1752887333089,3.37,174.81,174.8,5.7165]
[1752887333289,3.37,174.84,174.8,3.24]
[1752887333589,3.37694734,174.86,174.81,3.24]
[1752887333885,3.37,174.84,174.79,0.038712]
[1752887334191,3.37,174.86,174.79,3.278712]
[1752887334486,3.37,174.86,174.8,3.18]
[1752887334685,3.37,174.86,174.82,3.18]
[1752887334890,3.23,174.88,174.82,3.18]
[1752887335281,3.23,174.88,174.83,3.37694734]
[1752887335482,3.23,174.89,174.85,3.18]
[1752887335684,3.23,174.88,174.85,3.18]
[1752887335881,3.23,174.87,174.85,3.18]
[1752887336083,5.7139,174.89,174.85,5.7149]
[1752887336289,3.23,174.88,174.86,3.18]
[1752887336491,6.60694734,174.92,174.86,3.18]
[1752887336884,3.23,174.92,174.86,3.18]
[1752887337194,3.23,174.93,174.87,3.41673458]
[1752887337389,3.23,174.93,174.9,3.18]
[1752887337588,5.7122,174.94,174.91,3.18]
[1752887337783,3.23,174.93,174.91,3.18]
[1752887337991,3.23,174.92,174.88,3.18]
[1752887338184,5.7122,174.94,174.89,3.18]
[1752887338491,3.23,174.91,174.9,0.04370338]
[1752887338694,3.37694734,174.91,174.84,3.18]
[1752887338992,3.23,174.88,174.82,6.55694734]
[1752887339182,3.23,174.88,174.86,5.7146]
[1752887339384,3.23,174.88,174.82,3.37694734]
[1752887339582,3.23,174.88,174.85,3.18]
[1752887339787,3.23,174.87,174.85,3.18]
[1752887339988,3.27230833,174.87,174.85,8.8949]
[1752887340192,3.27230833,174.87,174.81,3.37694734]
[1752887340393,3.27230833,174.87,174.81,6.55694734]